[Event "*** SCC Grand Prix: Titled Tuesday Blitz"]
[Site "Chess.com"]
[Date "2020.06.09"]
[Round "8"]
[White "MisiekZielony"]
[Black "Olga_Girya"]
[Result "0-1"]
[WhiteElo "2147"]
[BlackElo "2399"]
[TimeControl "180+1"]
[EndTime "10:37:14 PDT"]
[Termination "Olga_Girya won on time"]

1. c4 {[%clk 0:03:00]} 1... c6 {[%clk 0:02:59.1]} 2. Nc3 {[%clk 0:02:59.5]} 2...
d5 {[%clk 0:02:59.6]} 3. cxd5 {[%clk 0:02:59.6]} 3... cxd5 {[%clk 0:02:59.3]} 4.
d4 {[%clk 0:03:00.1]} 4... Nf6 {[%clk 0:02:58.4]} 5. Nf3 {[%clk 0:03:00.3]} 5...
Nc6 {[%clk 0:02:57.9]} 6. Bf4 {[%clk 0:02:59.7]} 6... Bf5 {[%clk 0:02:57.9]} 7.
e3 {[%clk 0:02:58.6]} 7... e6 {[%clk 0:02:58.3]} 8. Bb5 {[%clk 0:02:55.9]} 8...
Bb4 {[%clk 0:02:54.5]} 9. Ne5 {[%clk 0:02:51.7]} 9... O-O {[%clk 0:02:41.6]} 10.
Bxc6 {[%clk 0:02:28]} 10... bxc6 {[%clk 0:01:20.5]} 11. Nxc6 {[%clk 0:02:14.9]}
11... Bxc3+ {[%clk 0:01:20.4]} 12. bxc3 {[%clk 0:02:14.5]} 12... Qd7 {[%clk
0:01:20.8]} 13. Ne5 {[%clk 0:01:43.3]} 13... Qc7 {[%clk 0:01:20.7]} 14. O-O
{[%clk 0:01:05.9]} 14... Qxc3 {[%clk 0:01:08.9]} 15. Qa4 {[%clk 0:00:52.4]}
15... Rfc8 {[%clk 0:01:01.7]} 16. h3 {[%clk 0:00:37.2]} 16... h6 {[%clk
0:00:55.4]} 17. Rac1 {[%clk 0:00:23.6]} 17... Qxc1 {[%clk 0:00:43.8]} 18. Rxc1
{[%clk 0:00:23.4]} 18... Rxc1+ {[%clk 0:00:44.4]} 19. Kh2 {[%clk 0:00:24]} 19...
Rcc8 {[%clk 0:00:32.9]} 20. Nc6 {[%clk 0:00:23.3]} 20... Re8 {[%clk 0:00:27.2]}
21. Bd6 {[%clk 0:00:18.9]} 21... Ne4 {[%clk 0:00:25.8]} 22. Ne7+ {[%clk
0:00:03.5]} 22... Kh7 {[%clk 0:00:25.8]} 23. Nxf5 {[%clk 0:00:03.3]} 23... exf5
{[%clk 0:00:26.1]} 24. Bg3 {[%clk 0:00:03.8]} 24... Re7 {[%clk 0:00:21.7]} 25.
Qb5 {[%clk 0:00:03.7]} 25... Nxg3 {[%clk 0:00:19]} 26. Kxg3 {[%clk 0:00:03.8]}
26... Rd8 {[%clk 0:00:19.3]} 27. a4 {[%clk 0:00:03.9]} 27... Rd6 {[%clk
0:00:18.9]} 28. h4 {[%clk 0:00:04.1]} 28... h5 {[%clk 0:00:18.5]} 29. Kh2 {[%clk
0:00:04.3]} 29... Red7 {[%clk 0:00:18.1]} 30. g3 {[%clk 0:00:04.5]} 30... Kh6
{[%clk 0:00:17.5]} 31. Qe2 {[%clk 0:00:04.3]} 31... g6 {[%clk 0:00:17.1]} 32.
Qd3 {[%clk 0:00:04.1]} 32... Kg7 {[%clk 0:00:17.5]} 33. Qb5 {[%clk 0:00:04.1]}
33... Re7 {[%clk 0:00:16.3]} 34. Qc5 {[%clk 0:00:03.7]} 34... Ree6 {[%clk
0:00:16.4]} 35. Kg2 {[%clk 0:00:03.2]} 35... Ra6 {[%clk 0:00:14.6]} 36. Qb5
{[%clk 0:00:03.2]} 36... Red6 {[%clk 0:00:13.9]} 37. Qc5 {[%clk 0:00:03.5]}
37... Rab6 {[%clk 0:00:12.8]} 38. Qc7 {[%clk 0:00:03.4]} 38... a6 {[%clk
0:00:12.5]} 39. Qa7 {[%clk 0:00:02.6]} 39... Rbc6 {[%clk 0:00:12.4]} 40. a5
{[%clk 0:00:02]} 40... Rc2 {[%clk 0:00:12.3]} 41. Qe7 {[%clk 0:00:01.8]} 41...
Rdc6 {[%clk 0:00:11.8]} 42. Qd7 {[%clk 0:00:01.9]} 42... R2c4 {[%clk 0:00:09.4]}
43. Qxd5 {[%clk 0:00:02]} 43... Rc2 {[%clk 0:00:09]} 44. Qe5+ {[%clk 0:00:02.5]}
44... Kg8 {[%clk 0:00:08]} 45. d5 {[%clk 0:00:02.7]} 45... Rc8 {[%clk
0:00:06.8]} 46. d6 {[%clk 0:00:02.3]} 46... Rd2 {[%clk 0:00:05.8]} 47. Qe7
{[%clk 0:00:02.6]} 47... Kg7 {[%clk 0:00:03.1]} 48. d7 {[%clk 0:00:02.5]} 48...
Ra8 {[%clk 0:00:02.7]} 49. d8=Q {[%clk 0:00:03.1]} 49... Raxd8 {[%clk
0:00:02.4]} 50. Qe5+ {[%clk 0:00:03.6]} 50... Kg8 {[%clk 0:00:02.2]} 51. Qf6
{[%clk 0:00:04]} 51... R2d6 {[%clk 0:00:02.2]} 52. Qe7 {[%clk 0:00:03.7]} 52...
R8d7 {[%clk 0:00:02.9]} 53. Qe8+ {[%clk 0:00:03.8]} 53... Kg7 {[%clk 0:00:03.8]}
54. Qe5+ {[%clk 0:00:04.1]} 54... Kh7 {[%clk 0:00:04]} 55. Qe8 {[%clk
0:00:04.3]} 55... Rd5 {[%clk 0:00:04.3]} 56. Kf3 {[%clk 0:00:04.4]} 56... Kg7
{[%clk 0:00:04.6]} 57. Qa8 {[%clk 0:00:03.6]} 57... R7d6 {[%clk 0:00:05]} 58.
Kf4 {[%clk 0:00:03.6]} 58... Rxa5 {[%clk 0:00:04.5]} 59. Qb8 {[%clk 0:00:02.8]}
59... Ra4+ {[%clk 0:00:04.7]} 60. Kf3 {[%clk 0:00:02.2]} 60... Re6 {[%clk
0:00:04.4]} 61. Qb2+ {[%clk 0:00:01.9]} 61... Kg8 {[%clk 0:00:03.7]} 62. Qc2
{[%clk 0:00:02.1]} 62... Ra5 {[%clk 0:00:03.1]} 63. Qc8+ {[%clk 0:00:02.2]}
63... Kg7 {[%clk 0:00:03.3]} 64. Qc3+ {[%clk 0:00:01.3]} 64... Kg8 {[%clk
0:00:03.4]} 65. Qxa5 {[%clk 0:00:01.8]} 65... Kg7 {[%clk 0:00:03.7]} 66. Kf4
{[%clk 0:00:02.1]} 66... Kh6 {[%clk 0:00:03.4]} 67. Qd8 {[%clk 0:00:01.3]} 67...
Kg7 {[%clk 0:00:03.7]} 0-1

[Event "*** SCC Grand Prix: Titled Tuesday Blitz"]
[Site "Chess.com"]
[Date "2020.06.09"]
[Round "8"]
[White "IwkooO"]
[Black "kran900"]
[Result "0-1"]
[WhiteElo "2570"]
[BlackElo "2458"]
[TimeControl "180+1"]
[EndTime "10:37:37 PDT"]
[Termination "kran900 won on time"]

1. e4 {[%clk 0:03:00.6]} 1... e5 {[%clk 0:02:59.4]} 2. Nf3 {[%clk 0:03:01]} 2...
Nc6 {[%clk 0:02:59.2]} 3. Bb5 {[%clk 0:03:01.7]} 3... a6 {[%clk 0:02:59.1]} 4.
Ba4 {[%clk 0:03:01.8]} 4... Nf6 {[%clk 0:02:59.6]} 5. O-O {[%clk 0:03:02.3]}
5... Be7 {[%clk 0:03:00.1]} 6. Re1 {[%clk 0:03:02.3]} 6... b5 {[%clk 0:03:00.6]}
7. Bb3 {[%clk 0:03:02.2]} 7... O-O {[%clk 0:03:01.2]} 8. h3 {[%clk 0:03:01.4]}
8... d5 {[%clk 0:03:01]} 9. exd5 {[%clk 0:03:01.2]} 9... Nxd5 {[%clk 0:03:01.6]}
10. Nxe5 {[%clk 0:03:01.8]} 10... Nxe5 {[%clk 0:03:02.2]} 11. Rxe5 {[%clk
0:03:02.7]} 11... Bb7 {[%clk 0:02:54]} 12. d3 {[%clk 0:03:01.2]} 12... c5 {[%clk
0:02:48.8]} 13. Re1 {[%clk 0:02:54.8]} 13... Bd6 {[%clk 0:02:47.3]} 14. Nd2
{[%clk 0:02:40.1]} 14... c4 {[%clk 0:02:13.7]} 15. dxc4 {[%clk 0:02:38.9]} 15...
Nf4 {[%clk 0:02:14.2]} 16. Nf3 {[%clk 0:02:35.4]} 16... Qf6 {[%clk 0:02:05.6]}
17. cxb5 {[%clk 0:02:15.7]} 17... Nxh3+ {[%clk 0:01:54.3]} 18. Kf1 {[%clk
0:02:06.7]} 18... Rad8 {[%clk 0:01:44.3]} 19. Qd4 {[%clk 0:02:06.3]} 19... Qf5
{[%clk 0:01:10.7]} 20. Qh4 {[%clk 0:01:18.5]} 20... Nf4 {[%clk 0:00:35.6]} 21.
Bxf4 {[%clk 0:01:17.2]} 21... Bxf4 {[%clk 0:00:35.6]} 22. bxa6 {[%clk
0:01:13.4]} 22... Bxa6+ {[%clk 0:00:29.2]} 23. Kg1 {[%clk 0:01:13.2]} 23... Bb7
{[%clk 0:00:29.8]} 24. Rad1 {[%clk 0:01:06.3]} 24... Bxf3 {[%clk 0:00:28.2]} 25.
gxf3 {[%clk 0:01:06]} 25... Bd2 {[%clk 0:00:24]} 26. Qg4 {[%clk 0:00:44]} 26...
Qxg4+ {[%clk 0:00:22.5]} 27. fxg4 {[%clk 0:00:44.9]} 27... Bxe1 {[%clk
0:00:22.9]} 28. Rxe1 {[%clk 0:00:45.8]} 28... Rfe8 {[%clk 0:00:22.4]} 29. Rxe8+
{[%clk 0:00:43.9]} 29... Rxe8 {[%clk 0:00:22.7]} 30. Bc4 {[%clk 0:00:41.6]}
30... Re4 {[%clk 0:00:21.4]} 31. b3 {[%clk 0:00:39.6]} 31... Rxg4+ {[%clk
0:00:21.5]} 32. Kh2 {[%clk 0:00:39]} 32... Kf8 {[%clk 0:00:20.3]} 33. a4 {[%clk
0:00:39.1]} 33... Ke7 {[%clk 0:00:20.5]} 34. a5 {[%clk 0:00:39.6]} 34... Kd6
{[%clk 0:00:20.8]} 35. a6 {[%clk 0:00:38.4]} 35... Kc7 {[%clk 0:00:20.9]} 36. f3
{[%clk 0:00:35.1]} 36... Rf4 {[%clk 0:00:20.3]} 37. Kg3 {[%clk 0:00:35.3]} 37...
g5 {[%clk 0:00:21]} 38. Bd3 {[%clk 0:00:32.3]} 38... Kb6 {[%clk 0:00:21.4]} 39.
c3 {[%clk 0:00:31.7]} 39... h5 {[%clk 0:00:21.1]} 40. b4 {[%clk 0:00:30.8]}
40... h4+ {[%clk 0:00:21.6]} 41. Kg2 {[%clk 0:00:30.5]} 41... f5 {[%clk
0:00:21]} 42. b5 {[%clk 0:00:25]} 42... g4 {[%clk 0:00:20.7]} 43. c4 {[%clk
0:00:20.1]} 43... h3+ {[%clk 0:00:17.1]} 44. Kh2 {[%clk 0:00:19.1]} 44... Rxf3
{[%clk 0:00:17.5]} 45. c5+ {[%clk 0:00:19.6]} 45... Kxc5 {[%clk 0:00:17.4]} 46.
a7 {[%clk 0:00:16.8]} 46... Rf2+ {[%clk 0:00:17.7]} 47. Kg3 {[%clk 0:00:17.5]}
47... Ra2 {[%clk 0:00:18]} 48. Bxf5 {[%clk 0:00:17.9]} 48... h2 {[%clk
0:00:18.3]} 49. Be4 {[%clk 0:00:18.2]} 49... Rxa7 {[%clk 0:00:18.3]} 50. Kxh2
{[%clk 0:00:17.4]} 50... Kd4 {[%clk 0:00:17.9]} 51. Bf5 {[%clk 0:00:15.6]} 51...
Rg7 {[%clk 0:00:15.3]} 52. Kg3 {[%clk 0:00:15.3]} 52... Kc5 {[%clk 0:00:15.9]}
53. Bxg4 {[%clk 0:00:15.3]} 53... Kxb5 {[%clk 0:00:16.5]} 54. Kf4 {[%clk
0:00:16.1]} 54... Kc5 {[%clk 0:00:17.1]} 55. Bf5 {[%clk 0:00:14.7]} 55... Kd4
{[%clk 0:00:17.7]} 56. Bg4 {[%clk 0:00:14]} 56... Rf7+ {[%clk 0:00:18.4]} 57.
Kg5 {[%clk 0:00:14.1]} 57... Ke5 {[%clk 0:00:18.7]} 58. Bd1 {[%clk 0:00:12.4]}
58... Rg7+ {[%clk 0:00:18.7]} 59. Kh6 {[%clk 0:00:12.4]} 59... Kf6 {[%clk
0:00:19.3]} 60. Kh5 {[%clk 0:00:10.9]} 60... Rg2 {[%clk 0:00:19.8]} 61. Bf3
{[%clk 0:00:09.1]} 61... Rg3 {[%clk 0:00:19.6]} 62. Be4 {[%clk 0:00:09.1]} 62...
Ke5 {[%clk 0:00:19.2]} 63. Bb1 {[%clk 0:00:08.6]} 63... Kf4 {[%clk 0:00:19.5]}
64. Kh6 {[%clk 0:00:09.1]} 64... Rg5 {[%clk 0:00:19.6]} 65. Bc2 {[%clk
0:00:09.2]} 65... Rg2 {[%clk 0:00:19.8]} 66. Bb1 {[%clk 0:00:09.2]} 66... Ke5
{[%clk 0:00:20.3]} 67. Kh5 {[%clk 0:00:07.4]} 67... Rg1 {[%clk 0:00:17.5]} 68.
Bc2 {[%clk 0:00:07.3]} 68... Kf6 {[%clk 0:00:17.4]} 69. Kh4 {[%clk 0:00:07.7]}
69... Rg2 {[%clk 0:00:17.5]} 70. Bd3 {[%clk 0:00:07.9]} 70... Rd2 {[%clk
0:00:17.4]} 71. Bb1 {[%clk 0:00:07.9]} 71... Ke5 {[%clk 0:00:17.5]} 72. Kg3
{[%clk 0:00:07.9]} 72... Rb2 {[%clk 0:00:17.9]} 73. Bh7 {[%clk 0:00:07.4]} 73...
Rb6 {[%clk 0:00:17.2]} 74. Kf3 {[%clk 0:00:05.9]} 74... Rf6+ {[%clk 0:00:16.3]}
75. Ke3 {[%clk 0:00:06]} 75... Rh6 {[%clk 0:00:16.9]} 76. Bg8 {[%clk 0:00:05.7]}
76... Rh3+ {[%clk 0:00:17.2]} 77. Kd2 {[%clk 0:00:05.7]} 77... Kd4 {[%clk
0:00:17.5]} 78. Ke2 {[%clk 0:00:04.9]} 78... Re3+ {[%clk 0:00:17.4]} 79. Kf2
{[%clk 0:00:05.5]} 79... Ke4 {[%clk 0:00:17.9]} 80. Bh7+ {[%clk 0:00:05.3]}
80... Kf4 {[%clk 0:00:18.4]} 81. Bg8 {[%clk 0:00:05.6]} 81... Rg3 {[%clk
0:00:18.4]} 82. Ke2 {[%clk 0:00:06.3]} 82... Rxg8 {[%clk 0:00:18.2]} 0-1

[Event "*** SCC Grand Prix: Titled Tuesday Blitz"]
[Site "Chess.com"]
[Date "2020.06.09"]
[Round "8"]
[White "LittlePeasant"]
[Black "GukeshDommaraju"]
[Result "0-1"]
[WhiteElo "2803"]
[BlackElo "2675"]
[TimeControl "180+1"]
[EndTime "10:37:40 PDT"]
[Termination "GukeshDommaraju won on time"]

1. Nf3 {[%clk 0:03:00.9]} 1... Nf6 {[%clk 0:02:59.2]} 2. c4 {[%clk 0:02:59.7]}
2... e6 {[%clk 0:02:59]} 3. b3 {[%clk 0:02:59.4]} 3... d5 {[%clk 0:02:57.6]} 4.
Bb2 {[%clk 0:02:59.5]} 4... c5 {[%clk 0:02:57.8]} 5. g3 {[%clk 0:02:58.5]} 5...
d4 {[%clk 0:02:56.7]} 6. e3 {[%clk 0:02:58.5]} 6... Nc6 {[%clk 0:02:55.4]} 7.
exd4 {[%clk 0:02:58.9]} 7... cxd4 {[%clk 0:02:56.3]} 8. Bg2 {[%clk 0:02:59.3]}
8... e5 {[%clk 0:02:55.3]} 9. O-O {[%clk 0:02:59.3]} 9... Be7 {[%clk 0:02:51.9]}
10. Re1 {[%clk 0:02:58.4]} 10... Nd7 {[%clk 0:02:49.7]} 11. a3 {[%clk
0:02:14.2]} 11... a5 {[%clk 0:02:37.7]} 12. b4 {[%clk 0:02:13.1]} 12... axb4
{[%clk 0:02:35.2]} 13. axb4 {[%clk 0:02:14]} 13... Rxa1 {[%clk 0:02:34.7]} 14.
Bxa1 {[%clk 0:02:14.9]} 14... Bxb4 {[%clk 0:02:31.7]} 15. Nxd4 {[%clk
0:02:12.1]} 15... Nxd4 {[%clk 0:02:31.2]} 16. Bxd4 {[%clk 0:02:12.4]} 16... O-O
{[%clk 0:02:31.2]} 17. Ba1 {[%clk 0:01:55.2]} 17... Bc5 {[%clk 0:02:06.6]} 18.
Nc3 {[%clk 0:01:51.8]} 18... Nf6 {[%clk 0:01:54.2]} 19. Nb5 {[%clk 0:01:33.9]}
19... Bg4 {[%clk 0:01:38.9]} 20. Qc2 {[%clk 0:01:30.6]} 20... Qb6 {[%clk
0:01:36.7]} 21. d3 {[%clk 0:01:25.9]} 21... Bd7 {[%clk 0:01:24]} 22. Bxe5 {[%clk
0:01:08.4]} 22... Ng4 {[%clk 0:01:16.6]} 23. d4 {[%clk 0:01:03.1]} 23... Nxe5
{[%clk 0:01:10.7]} 24. Rxe5 {[%clk 0:01:00.6]} 24... Bxd4 {[%clk 0:01:10.1]} 25.
Nxd4 {[%clk 0:00:49.5]} 25... Qxd4 {[%clk 0:01:09.9]} 26. Rd5 {[%clk 0:00:50]}
26... Qa1+ {[%clk 0:00:56.7]} 27. Rd1 {[%clk 0:00:49.6]} 27... Qa4 {[%clk
0:00:44.3]} 28. Qxa4 {[%clk 0:00:39.4]} 28... Bxa4 {[%clk 0:00:45.2]} 29. Rd6
{[%clk 0:00:31.4]} 29... Bc6 {[%clk 0:00:26.8]} 30. Bxc6 {[%clk 0:00:31.2]}
30... bxc6 {[%clk 0:00:27.7]} 31. Rxc6 {[%clk 0:00:32.1]} 31... h5 {[%clk
0:00:26.9]} 32. Rd6 {[%clk 0:00:30.4]} 32... Rc8 {[%clk 0:00:26.5]} 33. Rd4
{[%clk 0:00:30.2]} 33... g6 {[%clk 0:00:26.9]} 34. f3 {[%clk 0:00:28.8]} 34...
Kg7 {[%clk 0:00:26.3]} 35. Kf2 {[%clk 0:00:29.1]} 35... Ra8 {[%clk 0:00:25.2]}
36. Rd2 {[%clk 0:00:28.6]} 36... Kf6 {[%clk 0:00:21.6]} 37. Ke3 {[%clk
0:00:25.7]} 37... Ra3+ {[%clk 0:00:19.4]} 38. Rd3 {[%clk 0:00:20.4]} 38... Ra2
{[%clk 0:00:17.7]} 39. h4 {[%clk 0:00:16.7]} 39... Ke6 {[%clk 0:00:18]} 40. c5
{[%clk 0:00:12.4]} 40... Rg2 {[%clk 0:00:13]} 41. Ke4 {[%clk 0:00:08.6]} 41...
Rc2 {[%clk 0:00:08.1]} 42. Kd4 {[%clk 0:00:08.3]} 42... f6 {[%clk 0:00:07.5]}
43. Re3+ {[%clk 0:00:06.7]} 43... Kd7 {[%clk 0:00:07.8]} 44. Rc3 {[%clk
0:00:07.6]} 44... Rd2+ {[%clk 0:00:07.8]} 45. Ke4 {[%clk 0:00:07.6]} 45... Kc6
{[%clk 0:00:07.1]} 46. g4 {[%clk 0:00:07]} 46... Rh2 {[%clk 0:00:06.4]} 47. g5
{[%clk 0:00:04]} 47... Rxh4+ {[%clk 0:00:06.3]} 48. Ke3 {[%clk 0:00:02]} 48...
fxg5 {[%clk 0:00:07.2]} 49. Rc1 {[%clk 0:00:02.8]} 49... g4 {[%clk 0:00:07.4]}
50. Kf4 {[%clk 0:00:01.4]} 50... gxf3+ {[%clk 0:00:07.3]} 51. Kxf3 {[%clk
0:00:02.3]} 51... Rh3+ {[%clk 0:00:05.7]} 52. Kf4 {[%clk 0:00:02.7]} 52... Rh4+
{[%clk 0:00:06]} 53. Kf3 {[%clk 0:00:02.6]} 53... Rg4 {[%clk 0:00:06.4]} 54. Rc2
{[%clk 0:00:02.9]} 54... Rg5 {[%clk 0:00:06.5]} 55. Re2 {[%clk 0:00:02.1]} 55...
Rf5+ {[%clk 0:00:05.4]} 56. Ke4 {[%clk 0:00:02.5]} 56... Kxc5 {[%clk 0:00:04.4]}
57. Rg2 {[%clk 0:00:03.4]} 57... Rf6 {[%clk 0:00:04.4]} 58. Ke5 {[%clk
0:00:04.3]} 58... Rb6 {[%clk 0:00:04.5]} 59. Rg5 {[%clk 0:00:05.2]} 59... Kc4
{[%clk 0:00:04.5]} 60. Ke4 {[%clk 0:00:06.1]} 60... Kc3 {[%clk 0:00:04.4]} 61.
Ke3 {[%clk 0:00:06.7]} 61... Re6+ {[%clk 0:00:04.2]} 62. Kf3 {[%clk 0:00:07]}
62... Kd4 {[%clk 0:00:05.1]} 63. Kf4 {[%clk 0:00:07.3]} 63... Rf6+ {[%clk
0:00:05.5]} 64. Kg3 {[%clk 0:00:07.4]} 64... Ke4 {[%clk 0:00:06.4]} 65. Ra5
{[%clk 0:00:07.6]} 65... Rf3+ {[%clk 0:00:06.1]} 66. Kh4 {[%clk 0:00:07.9]}
66... Rf6 {[%clk 0:00:07]} 67. Ra4+ {[%clk 0:00:06.5]} 67... Kf3 {[%clk
0:00:07]} 68. Kg5 {[%clk 0:00:06]} 68... Re6 {[%clk 0:00:06.9]} 69. Rb4 {[%clk
0:00:06.2]} 69... Kg3 {[%clk 0:00:06.8]} 70. Rb3+ {[%clk 0:00:06]} 70... Kf2
{[%clk 0:00:07.2]} 71. Ra3 {[%clk 0:00:06.9]} 71... Kg2 {[%clk 0:00:07.5]} 72.
Rb3 {[%clk 0:00:07.1]} 72... Kf2 {[%clk 0:00:07.9]} 73. Ra3 {[%clk 0:00:07.6]}
73... Re3 {[%clk 0:00:08]} 74. Ra2+ {[%clk 0:00:07.5]} 74... Re2 {[%clk
0:00:08.3]} 75. Ra3 {[%clk 0:00:07.8]} 75... Re3 {[%clk 0:00:07.4]} 76. Ra2+
{[%clk 0:00:08]} 76... Kg3 {[%clk 0:00:07.7]} 77. Ra6 {[%clk 0:00:03.1]} 77...
h4 {[%clk 0:00:07]} 78. Rxg6 {[%clk 0:00:04]} 78... h3 {[%clk 0:00:07.4]} 79.
Kf5+ {[%clk 0:00:04.9]} 79... Kf2 {[%clk 0:00:06.5]} 80. Kf4 {[%clk 0:00:05.8]}
80... Rf3+ {[%clk 0:00:04.9]} 81. Ke4 {[%clk 0:00:05.2]} 81... Rg3 {[%clk
0:00:05.2]} 82. Rh6 {[%clk 0:00:06]} 82... Kg2 {[%clk 0:00:05.2]} 83. Ra6 {[%clk
0:00:04.4]} 83... h2 {[%clk 0:00:05]} 84. Ra2+ {[%clk 0:00:04.9]} 84... Kh3
{[%clk 0:00:05.3]} 0-1

[Event "*** SCC Grand Prix: Titled Tuesday Blitz"]
[Site "Chess.com"]
[Date "2020.06.09"]
[Round "8"]
[White "pavelalexandru07"]
[Black "eCztery"]
[Result "1/2-1/2"]
[WhiteElo "2173"]
[BlackElo "2394"]
[TimeControl "180+1"]
[EndTime "10:37:54 PDT"]
[Termination "Game drawn - insufficient material"]

1. e4 {[%clk 0:02:59.8]} 1... c5 {[%clk 0:02:59.2]} 2. Nf3 {[%clk 0:02:58.7]}
2... g6 {[%clk 0:02:58.5]} 3. d4 {[%clk 0:02:58.5]} 3... cxd4 {[%clk 0:02:59.4]}
4. Nxd4 {[%clk 0:02:58.7]} 4... Nc6 {[%clk 0:02:57.8]} 5. c4 {[%clk 0:02:57.8]}
5... Nf6 {[%clk 0:02:57.7]} 6. Nc3 {[%clk 0:02:57.1]} 6... Nxd4 {[%clk
0:02:57.8]} 7. Qxd4 {[%clk 0:02:56.7]} 7... d6 {[%clk 0:02:58.4]} 8. Be3 {[%clk
0:02:53.2]} 8... Bg7 {[%clk 0:02:58.3]} 9. Be2 {[%clk 0:02:53.3]} 9... O-O
{[%clk 0:02:58]} 10. Qd2 {[%clk 0:02:53.2]} 10... a5 {[%clk 0:02:58.4]} 11. O-O
{[%clk 0:02:53]} 11... a4 {[%clk 0:02:58.7]} 12. f3 {[%clk 0:02:49.3]} 12... Qa5
{[%clk 0:02:57.4]} 13. Rac1 {[%clk 0:02:45.8]} 13... Be6 {[%clk 0:02:54.9]} 14.
Rfd1 {[%clk 0:02:32.8]} 14... Rfc8 {[%clk 0:02:53.9]} 15. Nd5 {[%clk 0:02:17.2]}
15... Qxd2 {[%clk 0:02:48.8]} 16. Bxd2 {[%clk 0:02:14.8]} 16... Nxd5 {[%clk
0:02:28]} 17. exd5 {[%clk 0:01:50.7]} 17... Bf5 {[%clk 0:02:25.3]} 18. Bc3
{[%clk 0:01:50.7]} 18... Bh6 {[%clk 0:02:24.3]} 19. Bd2 {[%clk 0:01:43.1]} 19...
a3 {[%clk 0:02:17.4]} 20. b3 {[%clk 0:01:24.8]} 20... Bg7 {[%clk 0:01:56.6]} 21.
Bc3 {[%clk 0:01:21.8]} 21... Bxc3 {[%clk 0:01:46.4]} 22. Rxc3 {[%clk 0:01:21.3]}
22... b5 {[%clk 0:01:47.3]} 23. Re3 {[%clk 0:01:16.4]} 23... Kf8 {[%clk
0:01:39.2]} 24. Bf1 {[%clk 0:01:05.1]} 24... bxc4 {[%clk 0:01:37.3]} 25. Bxc4
{[%clk 0:01:02.6]} 25... Ra7 {[%clk 0:01:32]} 26. Rde1 {[%clk 0:00:57.7]} 26...
Rb7 {[%clk 0:01:27.7]} 27. g4 {[%clk 0:00:56.4]} 27... Bc2 {[%clk 0:01:25.2]}
28. Ba6 {[%clk 0:00:45.4]} 28... Rbc7 {[%clk 0:00:50.4]} 29. Bxc8 {[%clk
0:00:44.1]} 29... Rxc8 {[%clk 0:00:51.3]} 30. Rc1 {[%clk 0:00:33.3]} 30... Rc5
{[%clk 0:00:45.1]} 31. Re2 {[%clk 0:00:30.2]} 31... Bd3 {[%clk 0:00:42.8]} 32.
Rxc5 {[%clk 0:00:29.6]} 32... dxc5 {[%clk 0:00:43.7]} 33. Rd2 {[%clk 0:00:28.8]}
33... c4 {[%clk 0:00:44.2]} 34. bxc4 {[%clk 0:00:27.4]} 34... Bxc4 {[%clk
0:00:45.1]} 35. d6 {[%clk 0:00:24.5]} 35... exd6 {[%clk 0:00:41.9]} 36. Rxd6
{[%clk 0:00:24.1]} 36... Ke7 {[%clk 0:00:41]} 37. Rd4 {[%clk 0:00:20.7]} 37...
Bxa2 {[%clk 0:00:36.8]} 38. Rd3 {[%clk 0:00:20.8]} 38... Bc4 {[%clk 0:00:32.3]}
39. Rxa3 {[%clk 0:00:20.4]} 39... Kf6 {[%clk 0:00:32.8]} 40. Kf2 {[%clk
0:00:20.6]} 40... h6 {[%clk 0:00:32.2]} 41. Kg3 {[%clk 0:00:20.7]} 41... Kg7
{[%clk 0:00:32.5]} 42. h4 {[%clk 0:00:20.9]} 42... Be6 {[%clk 0:00:32.5]} 43.
Rc3 {[%clk 0:00:20.8]} 43... Bd5 {[%clk 0:00:32.5]} 44. Kf4 {[%clk 0:00:20.8]}
44... Be6 {[%clk 0:00:32.9]} 45. Ke5 {[%clk 0:00:20.9]} 45... Ba2 {[%clk
0:00:31.6]} 46. Kd6 {[%clk 0:00:20.7]} 46... Be6 {[%clk 0:00:31.5]} 47. Ke7
{[%clk 0:00:20.7]} 47... Ba2 {[%clk 0:00:30.9]} 48. Re3 {[%clk 0:00:20.7]} 48...
Bd5 {[%clk 0:00:30.9]} 49. g5 {[%clk 0:00:20.6]} 49... hxg5 {[%clk 0:00:29.5]}
50. hxg5 {[%clk 0:00:20.7]} 50... Ba2 {[%clk 0:00:29.5]} 51. f4 {[%clk
0:00:20.8]} 51... Bc4 {[%clk 0:00:29.1]} 52. Rc3 {[%clk 0:00:17.5]} 52... Bd5
{[%clk 0:00:29.3]} 53. Rc5 {[%clk 0:00:16.5]} 53... Be6 {[%clk 0:00:29.1]} 54.
Rc7 {[%clk 0:00:15.6]} 54... Bd5 {[%clk 0:00:29.1]} 55. Ke8 {[%clk 0:00:15.2]}
55... Be6 {[%clk 0:00:29]} 56. Re7 {[%clk 0:00:14.4]} 56... Bd5 {[%clk
0:00:28.9]} 57. Re5 {[%clk 0:00:14.1]} 57... Bb3 {[%clk 0:00:27]} 58. Ke7 {[%clk
0:00:14.5]} 58... Bc4 {[%clk 0:00:26.6]} 59. f5 {[%clk 0:00:13]} 59... gxf5
{[%clk 0:00:25.6]} 60. Rxf5 {[%clk 0:00:13.2]} 60... Kg6 {[%clk 0:00:24.4]} 61.
Rc5 {[%clk 0:00:13]} 61... Be6 {[%clk 0:00:21.5]} 62. Kf8 {[%clk 0:00:13]} 62...
Ba2 {[%clk 0:00:17.4]} 63. Re5 {[%clk 0:00:12.3]} 63... Be6 {[%clk 0:00:17.4]}
64. Rc5 {[%clk 0:00:11.8]} 64... Bb3 {[%clk 0:00:16.8]} 65. Ke7 {[%clk
0:00:11.8]} 65... Be6 {[%clk 0:00:16.7]} 66. Re5 {[%clk 0:00:11.7]} 66... Bb3
{[%clk 0:00:16.3]} 67. Rb5 {[%clk 0:00:11.3]} 67... Be6 {[%clk 0:00:16.1]} 68.
Ra5 {[%clk 0:00:11.1]} 68... Bc4 {[%clk 0:00:15.7]} 69. Rc5 {[%clk 0:00:10.6]}
69... Bb3 {[%clk 0:00:16.2]} 70. Re5 {[%clk 0:00:10.5]} 70... Be6 {[%clk
0:00:16.2]} 71. Rc5 {[%clk 0:00:10.5]} 71... Bf5 {[%clk 0:00:15.3]} 72. Ke8
{[%clk 0:00:07.1]} 72... Be6 {[%clk 0:00:14]} 73. Ke7 {[%clk 0:00:06.9]} 73...
Bb3 {[%clk 0:00:13.1]} 74. Re5 {[%clk 0:00:06.8]} 74... Ba2 {[%clk 0:00:12.7]}
75. Kd6 {[%clk 0:00:06.1]} 75... Be6 {[%clk 0:00:12.5]} 76. Kc5 {[%clk
0:00:06.1]} 76... Bf5 {[%clk 0:00:12.9]} 77. Re7 {[%clk 0:00:03.1]} 77... Be6
{[%clk 0:00:13.3]} 78. Kd6 {[%clk 0:00:02.7]} 78... Kxg5 {[%clk 0:00:12.8]} 79.
Rxe6 {[%clk 0:00:03.1]} 79... fxe6 {[%clk 0:00:13.7]} 80. Kxe6 {[%clk 0:00:04]}
1/2-1/2